bitfinex/quotes_SOLUSD_20240822
["timestamp","ask_amount","ask_price","bid_price","bid_amount"]
[1724312115637,0.1730572,143.0,142.93,0.25098]
[1724312115638,7.1661572,143.0,142.94,16.1677]
[1724312115857,7.1661572,143.0,142.95,0.25098]
[1724312116230,7.1661572,143.0,142.95,1.64971201]
[1724312116732,0.1730572,143.0,142.95,1.64971201]
[1724312116931,0.1730572,143.0,142.95,0.25098]
[1724312117126,0.1730572,143.0,142.94,16.1677]
[1724312117127,10.65,142.98,142.94,16.1677]
[1724312117356,17.6441,142.98,142.94,16.1677]
[1724312118080,6.9935,142.99,142.94,16.1677]
[1724312118256,6.9935,142.99,142.95,1.39880381]
[1724312119168,6.9935,142.99,142.94,16.29319]
[1724312119358,6.9935,142.99,142.95,0.25098]
[1724312127605,6.9939,142.98,142.94,16.1677]
[1724312127776,17.6439,142.98,142.94,16.1677]
[1724312127965,6.9946,142.97,142.94,16.1677]
[1724312132996,17.6439,142.99,142.94,16.1677]
[1724312133226,6.9939,142.99,142.94,16.1677]
[1724312133513,6.9939,142.99,142.95,0.12549]
[1724312140600,6.9939,142.99,142.95,0.25098]
[1724312140802,6.9939,142.99,142.95,1.64972189]
[1724312142316,17.8162572,143.0,142.95,1.64972189]
[1724312142489,0.1730572,143.0,142.95,1.64972189]
[1724312142690,0.1730572,143.0,142.95,21.64972189]
[1724312142899,0.1730572,143.0,142.96,6.9949]
[1724312143195,0.1730572,143.0,142.98,15.7614]
[1724312143396,0.1730572,143.0,142.99,0.12549]
[1724312144497,0.1730572,143.0,142.99,0.25098]
[1724312145393,0.1730572,143.0,142.98,15.7614]
[1724312147922,0.1730572,143.0,142.99,0.12549]
[1724312148598,0.1730572,143.0,142.99,0.25098]
[1724312150294,0.1730572,143.0,142.99,1.64928741]
[1724312150515,0.1730572,143.0,142.99,72.24438]
[1724312150710,0.1730572,143.0,142.99,79.554372]
[1724312151223,0.1730572,143.0,142.99,72.560972]
[1724312153030,0.1730572,143.0,142.99,20.0]
[1724312153604,0.1730572,143.0,142.99,21.39832049]
[1724312154125,0.1730572,143.0,142.99,20.25098]
[1724312155642,0.1730572,143.0,142.98,15.7614]
[1724312156629,0.1730572,143.0,142.99,1.39855515]
[1724312157009,0.1730572,143.0,142.99,1.52404515]
[1724312157210,0.1730572,143.0,142.99,1.64953515]
[1724312159124,0.1730572,143.0,142.99,0.25098]
[1724312160530,0.1730572,143.0,142.98,15.7614]
[1724312162126,0.1730572,143.0,142.99,0.25098]
[1724312164541,0.1730572,143.0,142.99,0.12549]
[1724312164735,0.1730572,143.0,142.98,15.7614]
[1724312164943,0.1730572,143.0,142.96,6.2753]
[1724312165246,0.1730572,143.0,142.97,20.25098]
[1724312165956,0.1730572,143.0,142.97,20.0]
[1724312165957,10.65,142.99,142.97,20.0]
[1724312166256,10.65,142.99,142.95,20.0]
[1724312167036,10.65,142.99,142.94,15.5111]
[1724312168231,10.65,142.99,142.95,20.0]
[1724312174672,10.65,142.99,142.96,0.12549]
[1724312177480,10.65,142.99,142.95,20.0]
[1724312190074,10.65,142.99,142.96,0.12549]
[1724312190278,0.1730572,143.0,142.96,1.64969572]
[1724312192178,0.1730572,143.0,142.96,0.25098]
[1724312193492,7.1661572,143.0,142.96,0.25098]
[1724312194168,10.65,142.99,142.96,0.25098]
[1724312196193,17.6435,142.99,142.96,0.12549]
[1724312196482,17.6435,142.99,142.94,20.0]
[1724312196787,17.6435,142.99,142.95,0.25098]
[1724312196993,17.6435,142.99,142.94,0.25098]
[1724312197489,10.65,142.99,142.94,0.25098]
[1724312200691,10.65,142.99,142.94,45.25098]
[1724312200994,10.65,142.99,142.95,20.0]
[1724312201169,10.65,142.99,142.96,0.12549]
[1724312203680,7.1661572,143.0,142.96,0.12549]
[1724312203876,0.1730572,143.0,142.96,0.12549]
[1724312204191,10.8230572,143.0,142.96,0.12549]
[1724312210797,10.8230572,143.0,142.96,0.25098]
[1724312210989,17.8161572,143.0,142.96,0.25098]
[1724312212081,10.8230572,143.0,142.96,0.25098]
[1724312213595,10.8230572,143.0,142.97,0.25098]
[1724312213802,10.8230572,143.0,142.95,0.25098]
[1724312214378,10.8230572,143.0,142.95,20.25098]
[1724312218497,17.8160572,143.0,142.95,20.25098]
[1724312218698,10.65,142.98,142.95,20.25098]
[1724312225015,7.1660572,143.0,142.96,1.39865352]
[1724312225310,0.1730572,143.0,142.97,0.25098]
[1724312231689,10.8230572,143.0,142.97,0.25098]
[1724312231993,10.65,142.98,142.95,20.0]
[1724312232186,10.65,142.98,142.96,20.0]
[1724312232387,10.65,142.98,142.94,20.0]
[1724312233589,10.65,142.98,142.95,0.25098]
[1724312235692,10.8230572,143.0,142.95,46.64966556]
[1724312236013,10.8230572,143.0,142.96,20.0]
[1724312236318,10.8230572,143.0,142.97,0.12549]
[1724312237190,10.8230572,143.0,142.96,20.0]
[1724312237591,10.8230572,143.0,142.97,0.12549]
[1724312242242,10.8230572,143.0,142.97,0.25098]
[1724312243109,10.8230572,143.0,142.97,1.64955939]
[1724312243824,10.8230572,143.0,142.97,0.25098]
[1724312255620,0.1730572,143.0,142.97,0.25098]
[1724312255824,0.1730572,143.0,142.97,53.64362459]
[1724312256133,0.1730572,143.0,142.97,45.25098]
[1724312263949,0.1730572,143.0,142.97,62.73668]
[1724312264121,0.1730572,143.0,142.98,28.39174905]
[1724312264441,0.1730572,143.0,142.99,46.6491632]
[1724312264640,0.1730572,143.0,142.99,66.6491632]
[1724312266947,0.1730572,143.0,142.99,65.25098]
[1724312299783,0.1730572,143.0,142.99,64.95098]
[1724312302019,0.1730572,143.0,142.99,65.20196]
[1724312302697,0.1730572,143.0,142.99,66.60027546]
[1724312303463,0.1730572,143.0,142.99,93.59351245]
[1724312304260,0.1730572,143.0,142.99,92.19536]
[1724312304786,0.1730572,143.0,142.99,72.19536]
[1724312306271,0.1730572,143.0,142.99,65.20196]
[1724312306963,0.1730572,143.0,142.99,72.19536]
[1724312310989,0.1730572,143.0,142.99,92.19536]
[1724312316083,0.1730572,143.0,142.99,99.20536]
[1724312330009,0.1730572,143.0,142.99,100.60347228]
[1724312330214,0.1730572,143.0,142.99,110.11751091]
[1724312331503,0.1730572,143.0,142.99,108.71939863]
[1724312331682,0.1730572,143.0,142.99,99.20536]
[1724312334087,0.1730572,143.0,142.99,27.01]
[1724312335520,0.1730572,143.0,142.99,72.13549]
[1724312336029,0.1730572,143.0,142.99,72.26098]
[1724312336611,0.1730572,143.0,142.99,27.01]
[1724312336823,0.1730572,143.0,142.94,17.4891]
[1724312337023,0.1730572,143.0,142.94,24.4846]
[1724312337201,10.65,142.98,142.94,24.4846]
[1724312338230,0.1730572,143.0,142.95,65.25098]
[1724312338424,10.65,142.99,142.95,72.24628]
[1724312338628,10.65,142.98,142.95,72.24628]
[1724312343826,10.8230572,143.0,142.96,8.39340826]
[1724312344141,10.8230572,143.0,142.97,65.25098]
[1724312345340,10.8230572,143.0,142.98,1.3985118]
[1724312345639,10.8230572,143.0,142.99,1.64942738]
[1724312345640,0.1730572,143.0,142.99,1.64942738]
[1724312346838,0.1730572,143.0,142.99,0.25098]
[1724312347059,0.1730572,143.0,142.98,0.25098]
[1724312349651,0.1730572,143.0,142.98,7.24448]
[1724312349944,0.1730572,143.0,142.99,71.9934]
[1724312350129,0.1730572,143.0,142.99,72.24438]
[1724312350535,0.1730572,143.0,142.99,73.64259747]
[1724312350735,0.1730572,143.0,142.99,93.64259747]
[1724312351447,0.1730572,143.0,142.99,92.24438]
[1724312353037,0.1730572,143.0,142.99,72.24438]
[1724312353433,0.1730572,143.0,142.99,82.89438]
[1724312354274,0.1730572,143.0,142.99,102.89438]
[1724312371725,0.1730572,143.0,142.99,104.29234449]
[1724312372321,0.1730572,143.0,142.99,102.89438]
[1724312374550,0.1730572,143.0,142.99,104.29230137]
[1724312374834,0.1730572,143.0,142.99,128.44000161]
[1724312375009,0.1730572,143.0,142.99,127.04207896]
[1724312377430,6.4718,143.09,143.02,26.9918]
[1724312377631,6.4718,143.09,143.03,65.25098]
[1724312382873,17.1218,143.09,143.03,65.25098]
[1724312385159,24.1105,143.09,143.03,65.25098]
[1724312385365,13.4605,143.09,143.03,20.25098]
[1724312385573,10.65,143.07,143.03,0.25098]
[1724312386172,10.65,143.08,143.03,0.25098]
[1724312386588,10.65,143.08,143.03,45.25098]
[1724312400699,10.65,143.06,143.02,30.65]
[1724312400858,10.65,143.06,143.02,20.0]
[1724312401057,10.65,143.06,143.01,20.0]
[1724312401259,13.2747,143.09,143.01,46.9924]
[1724312401499,10.65,143.08,143.01,46.9924]
[1724312402059,10.65,143.08,143.02,45.25098]
[1724312402260,10.65,143.08,143.03,20.0]
[1724312402459,10.65,143.08,143.04,0.25098]
[1724312404193,10.65,143.06,143.04,0.25098]
[1724312405586,6.2861,143.09,143.04,0.25098]
[1724312405911,6.9882,143.1,143.04,0.25098]
[1724312406056,10.65,143.09,143.04,0.25098]
[1724312406483,17.6386,143.09,143.04,0.25098]
[1724312407304,6.9886,143.09,143.04,0.25098]
[1724312407509,10.65,143.08,143.04,0.25098]
[1724312415817,10.65,143.08,143.04,45.25098]
[1724312419831,6.9878,143.11,143.04,45.25098]
[1724312420131,17.6376,143.11,143.05,21.39783184]
[1724312420326,17.6376,143.11,143.06,0.25098]
[1724312420528,17.6376,143.11,143.06,1.64865071]
[1724312423045,10.65,143.1,143.06,0.25098]
[1724312423814,10.65,143.08,143.06,0.25098]
[1724312427441,10.65,143.08,143.06,0.12549]
[1724312430615,17.6378,143.11,143.06,0.12549]
[1724312430838,17.6378,143.11,143.06,0.25098]
[1724312432936,6.9878,143.11,143.06,0.25098]
[1724312433142,17.6378,143.11,143.06,0.25098]
[1724312435145,6.9878,143.11,143.06,0.25098]
[1724312435336,17.6378,143.11,143.06,0.25098]
[1724312435714,6.9873,143.12,143.06,0.25098]
[1724312436043,17.6373,143.12,143.06,0.25098]
[1724312436336,17.6373,143.12,143.06,45.25098]
[1724312437844,6.9876,143.11,143.06,45.25098]
[1724312438625,6.9876,143.11,143.06,61.47268]
[1724312444253,17.6382,143.1,143.06,16.47268]
[1724312444432,10.65,143.1,143.06,16.47268]
[1724312449225,9.15,143.1,143.06,16.47268]
[1724312450039,6.9879,143.11,143.06,16.47268]
[1724312452554,17.6372,143.12,143.06,16.47268]
[1724312460460,17.6372,143.12,143.06,14.47268]
[1724312461444,6.9872,143.12,143.06,14.47268]
[1724312461960,28.8895322,143.15,143.07,38.55123788]
[1724312462166,35.8752322,143.15,143.08,73.38604498]
[1724312462367,28.8895322,143.15,143.09,37.6386]
[1724312462655,28.8895322,143.15,143.1,45.25098]
[1724312463441,28.8895322,143.15,143.11,16.5986]
[1724312463660,28.8895322,143.15,143.12,0.12549]
[1724312464659,35.8752322,143.15,143.11,16.5986]
[1724312465060,17.6361,143.14,143.11,16.5986]
[1724312465446,6.9867,143.13,143.08,20.0]
[1724312466533,35.8756322,143.15,143.08,30.65]
[1724312466740,6.9862,143.14,143.09,0.25098]
[1724312469240,6.9867,143.13,143.09,0.25098]
[1724312469571,6.9867,143.13,143.09,0.12549]
[1724312470649,6.9862,143.14,143.09,45.25098]
[1724312470865,6.9862,143.14,143.09,0.25098]
[1724312473137,6.9872,143.12,143.08,20.0]
[1724312473341,6.9872,143.12,143.07,22.2285]
[1724312474553,10.65,143.14,143.07,22.2285]
[1724312474554,6.9876,143.11,143.07,22.2285]
[1724312474970,6.9891,143.08,143.04,15.9267]
[1724312475268,6.9887,143.09,143.04,15.9267]
[1724312475874,17.6384,143.1,143.04,15.9267]
[1724312476246,17.6384,143.1,143.05,20.25098]
[1724312478665,6.9884,143.1,143.05,20.25098]
[1724312479062,6.9884,143.1,143.05,21.64883919]
[1724312479985,6.9884,143.1,143.05,20.25098]
[1724312482264,6.9886,143.09,143.05,20.12549]
[1724312482473,6.9886,143.09,143.05,20.0]
[1724312490101,6.9891,143.08,143.04,15.9267]
[1724312490401,10.65,143.11,143.04,15.9267]
[1724312490402,6.9887,143.09,143.04,15.9267]
[1724312492283,6.9882,143.1,143.04,15.9267]
[1724312492497,6.9882,143.1,143.05,21.64886405]
[1724312494303,6.9878,143.11,143.06,1.39788787]
[1724312494605,6.9878,143.11,143.07,0.12549]
[1724312495483,57.0046322,143.15,143.07,0.12549]
[1724312495802,28.8895322,143.15,143.08,15.5729]
[1724312496100,28.8895322,143.15,143.09,0.25098]
[1724312496402,28.8895322,143.15,143.09,0.12549]
[1724312496403,6.9866,143.13,143.09,0.12549]
[1724312497508,28.8895322,143.15,143.09,0.12549]
[1724312497688,28.8895322,143.15,143.09,45.25098]
[1724312497884,35.8754322,143.15,143.09,45.25098]
[1724312499089,6.9862,143.14,143.09,0.12549]
[1724312501596,6.9862,143.14,143.08,15.5729]
[1724312501597,6.9869,143.13,143.08,15.5729]
[1724312508808,6.9869,143.13,143.08,16.97057181]
[1724312509308,6.9862,143.14,143.08,26.2229]
[1724312509512,35.8753322,143.15,143.09,0.25098]
[1724312509689,6.9863,143.14,143.09,1.64846464]
[1724312510404,35.8753322,143.15,143.09,1.64846464]
[1724312510628,35.8753322,143.15,143.09,21.64846464]
[1724312512526,28.8895322,143.15,143.1,45.0]
[1724312512840,28.8895322,143.15,143.11,0.12549]
[1724312515435,35.8753322,143.15,143.09,20.12549]
[1724312515632,35.8753322,143.15,143.1,0.12549]
[1724312517617,6.9862,143.14,143.1,0.12549]
[1724312518994,6.9862,143.14,143.09,20.12549]
[1724312520040,6.9867,143.13,143.09,20.0]
[1724312523930,6.9862,143.14,143.09,20.0]
[1724312533253,6.9867,143.13,143.09,20.0]
[1724312536428,6.9862,143.14,143.09,20.0]
[1724312537046,28.8895322,143.15,143.09,20.0]
[1724312537259,28.8895322,143.15,143.1,1.39750447]
[1724312537934,28.8895322,143.15,143.09,20.0]
[1724312538133,35.8752322,143.15,143.1,0.12549]
[1724312542051,28.8895322,143.15,143.11,16.2788]
[1724312542257,28.8895322,143.15,143.11,22.8952]
[1724312544041,28.8895322,143.15,143.12,0.12549]
[1724312545858,28.8895322,143.15,143.12,45.25098]
[1724312546474,28.8895322,143.15,143.12,0.25098]
[1724312547343,28.8895322,143.15,143.11,22.8952]
[1724312551842,35.8753322,143.15,143.11,22.8952]
[1724312553262,28.8895322,143.15,143.11,22.8952]
[1724312553962,28.8895322,143.15,143.12,0.25098]
[1724312564263,28.8895322,143.15,143.11,22.8952]
[1724312564865,28.8895322,143.15,143.12,0.25098]
[1724312567882,28.8895322,143.15,143.12,1.64817832]
[1724312568860,28.8895322,143.15,143.12,0.25098]
[1724312570084,28.8895322,143.15,143.12,1.64818006]
[1724312570376,28.8895322,143.15,143.12,21.64818006]
[1724312570580,28.8895322,143.15,143.12,20.25098]
[1724312570767,28.8895322,143.15,143.13,55.65]
[1724312570967,28.8895322,143.15,143.14,0.25098]
[1724312576095,28.8895322,143.15,143.14,0.12549]
[1724312584526,28.8895322,143.15,143.14,10.77549]
[1724312584687,28.8895322,143.15,143.14,55.90098]
[1724312586219,28.8895322,143.15,143.14,75.90098]
[1724312586414,28.8895322,143.15,143.14,117.93058]
[1724312586719,28.8895322,143.15,143.14,110.94448]
[1724312586884,28.8895322,143.15,143.14,112.34141773]
[1724312590013,28.8895322,143.15,143.14,90.94448]
[1724312615153,28.8895322,143.15,143.14,110.94448]
[1724312617447,28.8895322,143.15,143.14,90.94448]
[1724312617648,28.8895322,143.15,143.14,80.29448]
[1724312617845,28.8895322,143.15,143.11,10.65]
[1724312619253,28.8895322,143.15,143.12,20.0]
[1724312620649,28.8895322,143.15,143.13,45.25098]
[1724312620841,28.8895322,143.15,143.13,55.90098]
[1724312626957,28.8895322,143.15,143.14,20.0]
[1724312627157,28.8895322,143.15,143.14,20.25098]
[1724312630272,28.8895322,143.15,143.14,66.64807806]
[1724312634560,28.8895322,143.15,143.14,65.25098]
[1724312635681,28.8895322,143.15,143.14,85.25098]
[1724312637860,28.8895322,143.15,143.14,86.64796348]
[1724312638483,28.8895322,143.15,143.14,85.25098]
[1724312640979,28.8895322,143.15,143.14,93.63404527]
[1724312641285,28.8895322,143.15,143.14,86.64794527]
[1724312641462,28.8895322,143.15,143.14,85.25098]
[1724312642157,28.8895322,143.15,143.14,95.90098]
[1724312643705,28.8895322,143.15,143.14,65.25098]
[1724312643984,28.8895322,143.15,143.14,75.90098]
[1724312649087,28.8895322,143.15,143.14,97.29797287]
[1724312652291,28.8895322,143.15,143.14,95.90098]
[1724312654093,28.8895322,143.15,143.14,114.05253729]
[1724312655477,28.8895322,143.15,143.14,112.65573543]
[1724312661013,21.7654,143.24,143.17,28.12518093]
[1724312661177,21.7654,143.24,143.18,55.90098]
[1724312661877,21.7654,143.24,143.19,21.7654]
[1724312662077,21.7654,143.24,143.2,0.12549]
[1724312665816,28.7471,143.24,143.19,21.7654]
[1724312671285,21.7654,143.24,143.19,21.7654]
[1724312671990,6.9808,143.25,143.19,21.7654]
[1724312672196,6.9808,143.25,143.2,45.12549]
[1724312672407,6.9804,143.26,143.2,45.12549]
[1724312672713,6.9804,143.26,143.21,1.52194856]
[1724312673201,6.9804,143.26,143.21,0.12549]
[1724312673412,6.9804,143.26,143.2,46.52188893]
[1724312673618,6.9804,143.26,143.21,0.12549]
[1724312674188,6.9804,143.26,143.22,21.7542]
[1724312674915,6.9806,143.26,143.2,45.12549]
[1724312675083,6.9806,143.26,143.21,21.7542]
[1724312679810,6.9799,143.27,143.22,45.0]
[1724312680708,6.9799,143.27,143.21,21.7542]
[1724312680911,6.9799,143.27,143.22,0.12549]
[1724312682404,6.9799,143.27,143.21,45.25098]
[1724312682705,6.9799,143.27,143.22,21.7542]
[1724312683512,28.7336,143.28,143.22,21.7542]
[1724312684194,6.9798,143.27,143.22,21.7542]
[1724312688500,6.9804,143.26,143.22,21.7542]
[1724312689201,5.9804,143.26,143.22,21.7542]
[1724312690513,6.98,143.27,143.22,21.7542]
[1724312692300,6.9803,143.26,143.22,21.7542]
[1724312696942,6.9808,143.25,143.22,21.7542]
[1724312698844,6.9804,143.26,143.22,21.7542]
[1724312699942,6.9809,143.25,143.21,45.25098]
[1724312703259,8.14303133,143.29,143.21,45.25098]
[1724312703547,6.9802,143.27,143.21,55.90098]
[1724312703710,6.9802,143.27,143.21,45.25098]
[1724312703906,6.9802,143.27,143.22,18.793031]
[1724312704113,6.9802,143.27,143.23,0.12549]
[1724312705013,6.9793,143.28,143.23,0.12549]
[1724312705422,6.9793,143.28,143.23,45.25098]
[1724312705639,6.9793,143.28,143.23,45.12549]
[1724312705824,6.9793,143.28,143.23,0.12549]
[1724312706037,6.9793,143.28,143.23,0.25098]
[1724312706740,6.9793,143.28,143.23,0.12549]
[1724312708447,6.9798,143.27,143.23,0.12549]
[1724312715955,6.9803,143.26,143.22,45.0]
[1724312716256,11.5033722,143.29,143.19,47.1572]
[1724312716257,6.9809,143.25,143.19,16.5072]
[1724312716425,6.9809,143.25,143.22,17.4449]
[1724312720758,6.9809,143.25,143.19,16.5072]
[1724312721065,6.9809,143.25,143.2,0.12549]
[1724312721564,10.65,143.25,143.19,33.9521]
[1724312721760,6.9824,143.22,143.19,33.9521]
[1724312722541,10.65,143.25,143.19,33.9521]
[1724312722741,17.6309,143.25,143.19,33.9521]
[1724312722941,6.9809,143.25,143.19,33.9521]
[1724312726482,6.9813,143.24,143.19,33.9521]
[1724312728173,6.9822,143.22,143.19,33.9521]
[1724312728362,6.9819,143.23,143.19,33.9521]
[1724312730053,17.6315,143.24,143.19,33.9521]
[1724312730682,6.9815,143.24,143.19,33.9521]
[1724312734366,6.9815,143.24,143.19,16.5072]
[1724312734784,6.9815,143.24,143.19,33.957]
[1724312737784,6.9818,143.23,143.19,33.957]
[1724312738374,6.9814,143.24,143.19,33.957]
[1724312738697,6.9813,143.24,143.19,33.957]
[1724312739879,17.6309,143.25,143.19,33.957]
[1724312740414,6.9812,143.24,143.19,33.957]
[1724312741780,6.9812,143.24,143.19,16.5072]
[1724312742086,17.6309,143.25,143.19,16.5072]
[1724312743824,10.65,143.26,143.19,16.5072]
[1724312743969,0.8533722,143.29,143.2,51.75528]
[1724312744279,10.65,143.27,143.2,51.75528]
[1724312744478,17.6301,143.27,143.2,51.75528]
[1724312746505,6.9804,143.26,143.2,51.62979]
[1724312748700,10.65,143.25,143.2,6.62979]
[1724312749018,10.65,143.25,143.2,6.5043]
[1724312749310,17.4484,143.28,143.19,16.5072]
[1724312749311,10.65,143.23,143.19,16.5072]
[1724312749684,10.65,143.23,143.19,33.0144]
[1724312751089,17.6317,143.23,143.19,33.0144]
[1724312752411,6.9823,143.22,143.19,33.0144]
[1724312752612,6.9823,143.22,143.16,21.3846]
[1724312752911,6.9823,143.22,143.18,17.451]
[1724312755812,17.6317,143.24,143.16,21.3846]
[1724312756017,17.6317,143.24,143.17,65.12549]
[1724312757517,10.65,143.22,143.17,20.0]
[1724312758910,10.65,143.22,143.16,32.0346]
[1724312759112,10.65,143.2,143.16,15.0623]
[1724312759296,17.6333,143.2,143.16,15.0623]
[1724312760512,6.9833,143.2,143.16,15.0623]
[1724312760717,17.6329,143.21,143.16,15.0623]
[1724312760898,17.6329,143.21,143.16,13.0623]
[1724312762515,6.9829,143.21,143.16,13.0623]
[1724312762999,6.9829,143.21,143.16,29.8644]
[1724312765897,10.65,143.23,143.16,29.8644]
[1724312766120,6.9823,143.22,143.16,29.8644]
[1724312767202,10.65,143.21,143.16,29.8644]
[1724312770423,17.6328,143.21,143.16,29.8644]
[1724312771121,17.6328,143.21,143.16,13.0623]
[1724312773031,10.65,143.19,143.16,13.0623]
[1724312773723,10.65,143.17,143.16,13.0623]
[1724312773904,6.9841,143.19,143.16,13.0623]
[1724312774107,6.9832,143.21,143.16,13.0623]
[1724312774306,10.65,143.19,143.16,13.0623]
[1724312777124,17.6329,143.21,143.16,13.0623]
[1724312778735,10.65,143.21,143.16,13.0623]
[1724312778913,6.9824,143.22,143.16,13.0623]
[1724312780820,17.6324,143.22,143.16,13.0623]
[1724312781320,17.6324,143.22,143.16,30.5147]
[1724312782738,10.65,143.22,143.16,30.5147]
[1724312790050,17.6323,143.22,143.16,30.5147]
[1724312791330,10.65,143.2,143.16,30.5147]
[1724312791567,10.65,143.18,143.16,13.0623]
[1724312794251,10.65,143.2,143.16,13.0623]
[1724312794654,6.9828,143.21,143.16,13.0623]
[1724312794959,10.65,143.2,143.16,13.0623]
[1724312796740,10.65,143.22,143.16,13.0623]
[1724312796933,10.65,143.22,143.17,6.328]
[1724312805263,7.30165628,143.26,143.17,6.328]
[1724312805440,10.65,143.24,143.17,7.72463273]
[1724312805966,10.65,143.24,143.17,6.328]
[1724312807557,17.6315,143.24,143.17,6.328]
[1724312810191,10.65,143.22,143.17,6.328]
[1724312812672,17.6322,143.22,143.17,6.328]
[1724312813884,10.65,143.2,143.17,6.328]
[1724312814076,10.65,143.2,143.16,23.7123]
[1724312814572,10.65,143.18,143.16,13.0623]
[1724312814764,10.65,143.18,143.14,6.2405]
[1724312814962,10.65,143.18,143.15,10.65]
[1724312816678,10.65,143.16,143.13,16.4131]
[1724312816892,10.65,143.16,143.13,32.8262]
[1724312817070,6.9848,143.17,143.13,16.4131]
[1724312817260,17.6348,143.17,143.13,16.4131]
[1724312819070,10.65,143.17,143.13,16.4131]
[1724312821485,6.9843,143.18,143.13,16.4131]
[1724312823175,17.6338,143.19,143.13,16.4131]
[1724312823393,17.6338,143.19,143.13,17.81020134]
[1724312823916,10.65,143.19,143.13,16.4131]
[1724312824082,10.65,143.19,143.14,0.12549]
[1724312824386,10.65,143.19,143.13,16.4131]
[1724312825682,17.6338,143.19,143.13,16.4131]
[1724312825869,10.65,143.17,143.13,16.4131]
[1724312827305,17.6347,143.17,143.13,16.4131]
[1724312827481,10.65,143.15,143.13,16.4131]
[1724312831112,17.6348,143.17,143.13,16.4131]
[1724312831492,10.65,143.17,143.13,16.4131]
[1724312834101,17.6347,143.17,143.13,16.4131]
[1724312835998,6.9847,143.17,143.13,16.4131]
[1724312838213,10.65,143.18,143.13,16.4131]
[1724312838214,17.6343,143.18,143.13,16.4131]
[1724312838601,6.9837,143.2,143.13,27.0631]
[1724312838813,17.6337,143.2,143.13,16.4131]
[1724312839799,10.65,143.2,143.13,16.4131]
[1724312840006,6.9837,143.19,143.13,16.4131]
[1724312842408,17.6337,143.19,143.13,16.4131]
[1724312844204,6.9833,143.2,143.14,1.39712583]
[1724312844412,17.6333,143.2,143.14,1.39712583]
[1724312845523,17.6333,143.2,143.13,16.4131]
[1724312847211,6.9838,143.19,143.13,16.4131]
[1724312850619,6.9838,143.19,143.13,33.8682]
[1724312851240,10.65,143.2,143.15,6.2281]
[1724312851241,17.6334,143.2,143.15,6.2281]
[1724312851446,10.65,143.2,143.15,6.2281]
[1724312851940,17.6333,143.2,143.15,6.2281]
[1724312854854,6.9819,143.23,143.17,16.3093]
[1724312855146,17.6319,143.23,143.17,16.3093]
[1724312856555,10.65,143.23,143.17,16.3093]
[1724312857420,17.6317,143.23,143.17,16.3093]
[1724312858637,6.9824,143.22,143.17,16.3093]
[1724312859138,17.6319,143.23,143.17,16.3093]
[1724312862342,10.65,143.21,143.17,16.3093]
[1724312862640,6.9832,143.2,143.17,16.3093]
[1724312862841,17.6329,143.21,143.17,16.3093]
[1724312864545,10.65,143.21,143.17,16.3093]
[1724312872349,6.9824,143.22,143.17,16.3093]
[1724312874733,10.65,143.24,143.18,1.39673921]
[1724312874947,76.29470732,143.29,143.17,16.3093]
[1724312875147,17.6309,143.25,143.18,45.25098]
[1724312876939,17.6309,143.25,143.19,6.4278]
[1724312879862,17.6309,143.25,143.2,15.4291]
[1724312881046,10.65,143.25,143.2,15.4291]
[1724312883065,17.6308,143.25,143.2,15.4291]
[1724312883986,6.9813,143.24,143.2,15.4291]
[1724312885150,6.9819,143.23,143.2,15.4291]
[1724312885965,6.9814,143.24,143.2,15.4291]
[1724312892256,17.6309,143.25,143.2,15.4291]
[1724312892578,6.9809,143.25,143.2,15.4291]
[1724312894763,6.9804,143.26,143.2,15.4291]
[1724312894973,6.9804,143.26,143.2,16.82547523]